bitfinex/quotes_ETHUSD_20250422
["timestamp","ask_amount","ask_price","bid_price","bid_amount"]
[1745350672267,6.09088907,1694.2,1694.1,0.55]
[1745350672464,6.09088907,1694.2,1694.1,5.728]
[1745350672630,6.09088907,1694.2,1694.1,6.61321569]
[1745350674771,6.08312102,1694.2,1694.1,8.97435139]
[1745350675068,6.08312102,1694.2,1694.1,0.88521569]
[1745350675236,6.08312102,1694.2,1694.1,5.178]
[1745350675654,6.08312102,1694.2,1694.1,5.078]
[1745350677059,6.08312102,1694.2,1693.8,21.81848366]
[1745350677256,6.08312102,1694.2,1694.1,5.178]
[1745350678668,6.08312102,1694.2,1694.1,5.728]
[1745350678875,6.08312102,1694.2,1694.1,6.30670248]
[1745350679077,6.08312102,1694.2,1694.1,5.177]
[1745350679236,0.7696,1694.5,1694.1,5.177]
[1745350679641,0.7696,1694.5,1693.9,1.313]
[1745350679941,5.903036,1694.1,1693.3,0.5178]
[1745350680140,5.90393513,1693.8,1693.3,5.177]
[1745350680381,0.7696,1693.7,1693.3,5.177]
[1745350680578,1.35999351,1693.7,1693.3,5.177]
[1745350680878,7.26447083,1693.7,1693.0,20.6353811]
[1745350681041,6.67431093,1693.6,1693.1,5.177]
[1745350681242,7.12443555,1693.6,1693.1,5.177]
[1745350681480,0.71244356,1693.5,1693.1,5.177]
[1745350681674,0.7696,1693.4,1693.0,19.8529811]
[1745350681879,0.7696,1693.4,1693.1,5.177]
[1745350682076,0.7696,1693.4,1693.0,19.8529811]
[1745350682243,6.61739617,1693.5,1692.2,0.7824]
[1745350682244,0.7696,1692.9,1692.2,0.7824]
[1745350682442,5.68513992,1692.8,1692.3,5.177]
[1745350682646,5.68513992,1692.8,1692.4,0.92266499]
[1745350683265,11.59268185,1692.8,1692.4,0.92266499]
[1745350683457,11.59268185,1692.8,1692.3,5.177]
[1745350683644,12.02512853,1692.8,1692.3,5.177]
[1745350683841,1.20251285,1692.7,1692.3,5.177]
[1745350684184,1.20251285,1692.7,1692.2,0.92309284]
[1745350684384,0.7696,1692.5,1692.3,5.179]
[1745350684599,0.7696,1692.4,1691.7,7.54346868]
[1745350684876,0.7696,1692.4,1691.9,0.92322306]
[1745350684877,5.68513992,1692.3,1691.9,0.92322306]
[1745350685069,6.33061391,1692.3,1691.9,0.92322306]
[1745350685272,6.33061391,1692.3,1691.7,5.179]
[1745350685982,6.33061391,1692.3,1691.5,4.07039509]
[1745350686185,11.59461475,1692.2,1691.5,0.92329361]
[1745350686383,6.67989634,1692.0,1691.3,0.3979811]
[1745350686683,5.68513992,1691.9,1691.3,3.3206724]
[1745350687059,0.7696,1691.7,1691.3,5.5779811]
[1745350687277,6.68095599,1691.7,1691.3,0.3979811]
[1745350687478,3.7696,1691.5,1691.3,0.3979811]
[1745350687801,5.68513992,1691.4,1691.3,0.3979811]
[1745350688102,6.88758793,1691.4,1691.3,0.3979811]
[1745350688302,7.73470759,1691.4,1691.3,0.3979811]
[1745350688682,13.64696962,1691.4,1691.3,0.3979811]
[1745350689026,16.64696962,1691.4,1691.3,0.04974764]
[1745350689309,6.45473992,1691.4,1691.3,0.04974764]
[1745350689475,5.68513992,1691.4,1691.3,0.04974764]
[1745350691508,5.68513992,1691.4,1691.3,5.47174764]
[1745350692501,5.68513992,1691.4,1691.3,0.04974764]
[1745350692808,5.68513992,1691.4,1691.3,0.59974764]
[1745350693014,5.68513992,1691.4,1691.3,0.6519224]
[1745350693212,5.68513992,1691.4,1691.3,0.04974764]
[1745350694388,5.67663739,1691.4,1691.3,5.47274764]
[1745350694594,5.67663739,1691.4,1691.3,0.04974764]
[1745350694806,5.67663739,1691.4,1691.3,5.47274764]
[1745350695413,5.67663739,1691.4,1691.3,0.04974764]
[1745350695718,6.24430113,1691.4,1691.3,5.47374764]
[1745350696315,7.07180113,1691.4,1691.3,0.04974764]
[1745350696487,12.98406316,1691.4,1691.3,0.04974764]
[1745350696922,15.98406316,1691.4,1691.3,0.04974764]
[1745350697118,10.07180113,1691.4,1691.3,0.04974764]
[1745350697719,15.98406316,1691.4,1691.3,0.04974764]
[1745350697888,22.00251145,1691.4,1691.3,0.04974764]
[1745350698406,6.45438975,1691.0,1690.4,1.72900762]
[1745350698611,14.5410692,1690.9,1690.4,6.34900762]
[1745350698814,5.62688975,1690.9,1690.4,5.425]
[1745350699012,5.62688975,1690.9,1690.4,6.34911822]
[1745350700226,11.54092751,1690.9,1690.4,5.425]
[1745350700429,1.15409275,1690.8,1690.4,5.425]
[1745350700604,5.62688975,1690.7,1690.4,5.425]
[1745350700789,9.45438975,1690.6,1690.2,0.92419171]
[1745350700991,5.62688975,1690.5,1690.2,5.425]
[1745350702526,5.62688975,1690.5,1690.3,0.55]
[1745350702730,5.62688975,1690.5,1690.1,0.55]
[1745350702931,5.62688975,1690.5,1690.1,1.06902273]
[1745350703114,5.62688975,1690.5,1690.1,3.43574488]
[1745350703443,4.98159275,1690.8,1690.0,4.64022727]
[1745350703444,5.62688975,1690.4,1690.0,4.64022727]
[1745350703727,5.62688975,1690.4,1690.2,5.426]
[1745350705140,5.62688975,1690.3,1690.2,5.426]
[1745350705503,5.62688975,1690.3,1690.2,6.781]
[1745350705906,5.62688975,1690.3,1690.2,9.14758383]
[1745350706096,5.62688975,1690.3,1690.2,10.29900528]
[1745350706300,5.62688975,1690.3,1690.0,4.64022727]
[1745350706525,5.62688975,1690.3,1690.1,5.427]
[1745350706900,5.62688975,1690.3,1690.2,0.55]
[1745350707222,5.62688975,1690.3,1690.1,5.427]
[1745350707422,5.62688975,1690.3,1690.0,5.19022727]
[1745350707731,5.62688975,1690.3,1690.1,5.428]
[1745350708431,5.62688975,1690.3,1690.0,5.19022727]
[1745350708728,0.8172,1690.7,1690.1,6.03716446]
[1745350708895,0.8172,1690.7,1690.1,8.40385529]
[1745350709319,0.8172,1690.7,1690.1,8.40381093]
[1745350709509,0.8172,1690.7,1690.1,5.978]
[1745350709738,6.73206157,1690.7,1690.0,4.64022727]
[1745350709895,6.73206157,1690.7,1690.0,10.06822727]
[1745350709896,10.4054812,1690.6,1690.0,10.06822727]
[1745350710099,1.49040616,1690.6,1690.0,10.88562727]
[1745350710847,3.0,1690.5,1690.0,10.88562727]
[1745350711210,7.40550907,1690.6,1690.0,10.88562727]
[1745350711551,8.91544228,1690.5,1690.0,10.88562727]
[1745350711749,0.8172,1690.2,1690.0,4.64022727]
[1745350711909,6.1,1690.1,1690.0,4.64022727]
[1745350714841,6.55067876,1690.1,1690.0,4.75018958]
[1745350715043,6.55067876,1690.1,1690.0,4.64022727]
[1745350715714,6.55067876,1690.1,1690.0,4.75091003]
[1745350716110,6.1,1690.1,1690.0,4.75091003]
[1745350716318,6.1,1690.1,1690.0,4.64022727]
[1745350716741,6.1,1690.1,1690.0,4.75081558]
[1745350716944,6.1,1690.1,1690.0,3.63058831]
[1745350716945,0.8172,1690.1,1690.0,3.63058831]
[1745350717119,0.8172,1690.1,1689.7,0.3979811]
[1745350717120,10.26689891,1689.9,1689.7,0.3979811]
[1745350717315,10.44918442,1689.9,1689.7,0.3979811]
[1745350717642,16.36680757,1689.9,1689.7,0.3979811]
[1745350717940,5.9178601,1689.8,1689.7,0.3979811]
[1745350718138,15.8350601,1689.8,1689.7,0.3979811]
[1745350718310,18.14524018,1689.8,1689.7,0.3979811]
[1745350718510,12.22738008,1689.8,1689.7,0.3979811]
[1745350718717,9.9172,1689.8,1689.7,0.3979811]
[1745350718914,6.1,1689.8,1689.7,0.9479811]
[1745350719117,6.1,1689.8,1689.7,4.13266523]
[1745350719314,1.34918442,1689.9,1689.8,2.36714404]
[1745350719520,1.34918442,1689.9,1689.7,4.1325861]
[1745350719751,1.34918442,1689.9,1689.8,2.78040265]
[1745350720565,1.34918442,1689.9,1689.8,0.41325861]
[1745350721068,1.34918442,1689.9,1689.7,1.7653811]
[1745350721466,1.34918442,1689.9,1689.7,1.2153811]
[1745350721635,1.34918442,1689.9,1689.8,5.55]
[1745350721851,1.34918442,1689.9,1689.8,6.1]
[1745350722161,1.34918442,1689.9,1689.8,8.46714404]
[1745350722372,1.34918442,1689.9,1689.8,10.46791445]
[1745350723771,1.34918442,1689.9,1689.8,13.46791445]
[1745350725263,1.34918442,1689.9,1689.8,11.10077041]
[1745350725470,7.44918442,1689.9,1689.7,0.3979811]
[1745350728717,8.20888442,1689.9,1689.8,5.55]
[1745350729770,8.20888442,1689.9,1689.7,5.9479811]
[1745350730399,7.44918442,1689.9,1689.7,5.9479811]
[1745350731703,6.1,1689.8,1689.7,5.9479811]
[1745350732076,6.8597,1689.8,1689.7,5.9479811]
[1745350732675,6.1,1689.8,1689.7,5.9479811]
[1745350733999,6.09249812,1689.8,1689.7,5.9479811]
[1745350734297,6.83666637,1689.8,1689.7,5.9479811]
[1745350735069,7.59636637,1689.8,1689.7,0.3979811]
[1745350736222,7.59636637,1689.8,1689.3,0.7958]
[1745350736223,12.3725654,1689.7,1689.2,0.92462179]
[1745350736523,9.93177356,1689.6,1689.1,1.20429963]
[1745350736819,9.93177356,1689.6,1689.2,5.55]
[1745350737318,15.85047273,1689.6,1689.1,1.20429963]
[1745350737519,6.45751702,1689.5,1689.1,1.20429963]
[1745350737692,12.37662742,1689.5,1689.1,1.20429963]
[1745350737888,6.45751702,1689.5,1689.1,1.20429963]
[1745350739199,5.69451702,1689.5,1689.1,1.20429963]
[1745350739613,5.69451702,1689.5,1689.2,5.551]
[1745350740918,5.69451702,1689.5,1689.2,6.3336]
[1745350741482,5.69451702,1689.5,1689.2,0.7826]
[1745350741885,5.69451702,1689.5,1689.2,3.31243301]
[1745350742323,5.69451702,1689.5,1689.1,5.84478236]
[1745350742514,5.69451702,1689.5,1689.1,4.06873264]
[1745350743025,5.69451702,1689.5,1689.1,5.8447767]
[1745350743526,5.69451702,1689.5,1689.1,4.06873264]
[1745350743744,5.69451702,1689.5,1689.1,6.48425592]
[1745350744235,5.69451702,1689.5,1689.1,4.70821852]
[1745350745241,5.69451702,1689.5,1689.2,0.7826]
[1745350745653,5.69451702,1689.5,1689.3,0.55]
[1745350746627,5.69451702,1689.5,1689.3,2.32587147]
[1745350747035,5.69451702,1689.5,1689.3,2.32581901]
[1745350747740,5.69451702,1689.5,1689.3,2.32581576]
[1745350748142,5.69451702,1689.8,1689.5,0.55]
[1745350748341,5.69451702,1689.8,1689.6,5.513]
[1745350748727,5.68579935,1689.8,1689.6,5.513]
[1745350749451,5.68579935,1689.8,1689.6,6.2956]
[1745350749652,5.68579935,1689.8,1689.7,2.32546309]
[1745350749852,5.68579935,1689.8,1689.6,6.2956]
[1745350750023,5.68579935,1689.8,1689.7,6.14256]
[1745350750348,5.68579935,1689.8,1689.7,8.46802309]
[1745350750755,5.68579935,1689.8,1689.7,9.25062309]
[1745350753774,6.51559935,1689.8,1689.5,5.513]
[1745350757386,5.68579935,1689.7,1689.3,19.508]
[1745350757561,0.8298,1689.4,1688.6,7.24783961]
[1745350757744,5.68579935,1689.3,1688.6,7.24783961]
[1745350758075,5.68579935,1689.3,1688.7,0.72478396]
[1745350759707,5.68579935,1689.2,1688.7,0.72478396]
[1745350759907,5.68579935,1689.2,1688.2,6.06539149]
[1745350759908,6.01844829,1688.8,1688.2,1.28837199]
[1745350760200,6.67791792,1688.3,1688.2,1.28837199]
[1745350760506,15.36371727,1688.3,1688.2,1.28837199]
[1745350760993,12.36371727,1688.3,1688.2,1.28837199]
[1745350761196,12.80003481,1688.3,1688.2,1.28837199]
[1745350762726,15.69706796,1688.1,1688.0,0.3979811]
[1745350763022,18.15913557,1688.1,1688.0,0.3979811]
[1745350764098,6.68142834,1687.3,1687.2,1.37244434]
[1745350764440,21.38567598,1687.3,1687.2,1.37244434]
[1745350764793,18.38567598,1687.3,1687.2,1.37244434]
[1745350764996,20.81687374,1687.3,1687.2,1.37244434]
[1745350765430,0.7548,1687.3,1687.2,1.37244434]
[1745350765925,11.70424764,1687.6,1687.2,1.37244434]
[1745350766099,0.7548,1687.5,1687.2,1.37244434]
[1745350766290,11.94486227,1687.4,1687.2,1.37244434]
[1745350766489,11.94485842,1687.4,1687.2,1.37244434]
[1745350766695,13.80743145,1687.4,1687.2,1.37244434]
[1745350766999,6.68090332,1687.5,1687.2,1.37244434]
[1745350767420,6.01844829,1687.4,1687.2,1.37244434]
[1745350767623,0.8012,1687.3,1687.2,1.37244434]
[1745350767825,12.41362769,1687.3,1687.2,1.37244434]
[1745350768000,14.8494878,1687.3,1687.2,1.37244434]
[1745350768523,17.0482878,1687.3,1687.2,1.37244434]
[1745350768728,17.8494878,1687.3,1687.2,1.37244434]
[1745350769193,18.15727811,1687.3,1687.2,1.37244434]
[1745350769805,18.15727811,1687.3,1686.3,2.6794978]
[1745350769806,5.92896673,1686.7,1686.4,5.518]
[1745350770017,0.8012,1686.6,1686.4,5.518]
[1745350770230,0.8012,1686.6,1686.5,0.11229869]
[1745350770231,12.74887797,1686.6,1686.5,0.11229869]
[1745350770435,5.92958627,1686.5,1686.3,1.8544978]
[1745350770623,18.43467732,1686.6,1686.5,0.11465244]
[1745350770824,5.92979127,1686.4,1686.3,1.8544978]
[1745350771008,18.43523891,1686.4,1686.3,1.8544978]
[1745350771331,12.50544764,1686.4,1686.3,1.8544978]
[1745350771636,18.43523891,1686.4,1686.3,1.8544978]
[1745350771832,12.50544764,1686.4,1686.3,1.8544978]
[1745350772046,14.34896001,1686.4,1686.3,1.8544978]
[1745350772602,0.8012,1686.9,1686.3,1.8544978]
[1745350772920,0.8012,1686.9,1686.3,1.98276617]
[1745350773441,6.72927409,1686.9,1686.3,1.98276617]
[1745350774049,0.8012,1686.9,1686.3,1.98276617]
[1745350774946,5.68579935,1687.0,1686.4,0.825]
[1745350775155,0.30779031,1687.3,1686.6,1.77866453]
[1745350775360,0.30779031,1687.3,1686.5,5.87798696]
[1745350775539,0.30779031,1687.3,1686.6,0.12674014]
[1745350775734,6.23459011,1687.3,1686.6,0.12674014]
[1745350775936,6.55049909,1687.2,1686.6,0.71441415]
[1745350776185,6.55049909,1687.2,1686.6,0.12674014]
[1745350776381,12.23643907,1687.2,1686.6,0.12674014]
[1745350776544,5.92756022,1687.1,1686.6,0.12674014]
[1745350776744,9.30925836,1687.2,1686.6,5.75]
[1745350776947,8.68579935,1687.2,1686.6,5.75]
[1745350777263,8.68579935,1687.2,1686.7,0.12850098]
[1745350777438,14.61281568,1687.2,1686.7,0.12850098]
[1745350777633,5.92742108,1687.1,1686.7,0.12850098]
[1745350777839,11.61322043,1687.1,1686.7,0.12850098]
[1745350778040,6.72936283,1686.9,1686.4,6.575]
[1745350778245,5.92851579,1686.8,1686.4,5.75]
[1745350778467,5.92873658,1686.7,1686.3,1.8544978]
[1745350778672,5.9295176,1686.5,1686.3,1.8544978]
[1745350778858,15.36979062,1686.4,1686.3,1.8544978]
[1745350779032,17.49972144,1686.4,1686.3,1.8544978]
[1745350779749,5.68579935,1686.4,1686.3,1.8544978]
[1745350781780,0.7542,1686.7,1686.3,1.8544978]
[1745350781991,5.92841682,1686.8,1686.3,1.8544978]
[1745350782216,5.92906769,1686.7,1686.3,1.8544978]
[1745350782416,6.52210928,1686.6,1686.3,1.8544978]
[1745350782728,0.59290677,1686.6,1686.3,1.8544978]
[1745350782935,6.72602823,1686.7,1686.3,1.8544978]
[1745350783230,0.7971,1686.7,1686.3,1.8544978]
[1745350783585,6.72594279,1686.7,1686.4,0.12607666]
[1745350783787,5.92909937,1686.6,1686.3,1.8544978]
[1745350783986,5.92909937,1686.6,1686.4,0.12594197]
[1745350784215,11.8584854,1686.6,1686.3,1.8544978]
[1745350784377,5.92909937,1686.6,1686.3,1.8544978]
[1745350784582,6.90934934,1686.6,1686.4,0.12607666]
[1745350784796,6.90934934,1686.6,1686.3,1.8544978]
[1745350785026,5.9294743,1686.5,1686.3,1.8544978]
[1745350785549,5.92979127,1686.4,1686.3,1.8544978]
[1745350785834,9.72689127,1686.4,1686.3,1.8544978]
[1745350786039,11.86110776,1686.4,1686.3,1.8544978]
[1745350786738,17.54690711,1686.4,1686.3,1.8544978]
[1745350787238,5.93190176,1685.8,1685.7,0.005]
[1745350787443,7.91535267,1685.8,1685.7,0.005]
[1745350788442,13.60115202,1685.8,1685.7,0.005]
[1745350788739,13.60115202,1685.8,1685.4,1.54058905]
[1745350788740,6.73005757,1685.5,1685.4,1.54058905]
[1745350788906,13.55695718,1685.5,1685.4,1.54058905]
[1745350789110,15.50592829,1685.5,1685.4,1.54058905]
[1745350789851,8.11819704,1685.8,1685.4,1.54058905]
[1745350790151,3.0,1685.7,1685.5,0.1296609]
[1745350790355,5.9326056,1685.6,1685.5,0.1296609]
[1745350790510,11.86552059,1685.6,1685.4,1.54058905]
[1745350790711,7.11950963,1685.5,1685.4,1.54058905]
[1745350790951,15.75931727,1685.7,1685.4,1.54058905]
[1745350791155,5.93268719,1685.6,1685.4,1.54058905]
[1745350791358,9.82689961,1685.7,1685.5,0.12831343]
[1745350791512,15.75939845,1685.7,1685.4,1.54058905]
[1745350791708,9.82689961,1685.7,1685.4,1.54058905]
[1745350791943,6.91548795,1685.6,1685.4,1.54058905]
[1745350792117,5.93295757,1685.5,1685.4,1.54058905]
[1745350792322,6.91552248,1685.6,1685.4,1.54058905]
[1745350792538,0.98268996,1685.6,1685.4,1.54058905]
[1745350792737,5.68579935,1686.3,1685.5,5.754]
[1745350793014,11.61611517,1686.3,1685.6,0.7891]
[1745350793221,8.93050746,1686.2,1685.7,0.13814075]
[1745350793543,11.61606246,1686.3,1685.6,0.7891]
[1745350793746,5.68579935,1686.3,1685.8,0.13755888]
[1745350794043,5.68579935,1686.3,1686.0,0.7891]
[1745350794243,5.92957734,1686.5,1686.1,0.1376634]
[1745350794457,1.78523152,1686.5,1686.1,0.1376634]
[1745350794657,7.71490736,1686.5,1686.1,0.1376634]
[1745350795147,3.0,1686.3,1685.8,5.754]
[1745350795457,3.0,1686.3,1685.9,0.1230906]
[1745350795645,5.9311981,1686.0,1685.8,5.754]
[1745350796018,6.52431791,1686.0,1685.8,5.754]
[1745350796219,5.93161585,1685.9,1685.5,0.7891]
[1745350796484,8.93176176,1685.9,1685.6,0.12540873]
[1745350796681,5.93201427,1685.8,1685.6,0.12540873]
[1745350797289,5.93225366,1685.7,1685.4,7.29458905]
[1745350797473,1.18642679,1685.7,1685.4,1.54058905]
[1745350798143,12.06293995,1685.9,1685.4,1.54058905]
[1745350798543,5.68579935,1685.9,1685.4,1.54058905]
[1745350799690,5.68579935,1685.9,1685.5,0.7891]
[1745350800792,5.68579935,1685.9,1685.4,1.54058905]
[1745350801092,12.41275341,1686.4,1685.6,0.7891]
[1745350801269,5.93109656,1686.1,1685.7,5.755]
[1745350801588,5.93109656,1686.1,1685.6,0.7891]
[1745350801589,11.86220496,1686.1,1685.6,0.7891]
[1745350801889,0.30761732,1686.2,1685.6,6.5441]
[1745350802061,6.23822567,1686.2,1685.7,0.1237179]
[1745350802261,6.23822567,1686.2,1685.6,6.5441]
[1745350802262,0.62382257,1686.1,1685.6,6.5441]
[1745350802464,0.30761732,1686.2,1685.7,0.12414211]
[1745350802680,0.30761732,1686.2,1685.6,6.5441]
[1745350802879,0.30761732,1686.2,1685.7,0.12346812]
[1745350803086,5.93112805,1686.1,1685.6,6.5441]
[1745350803399,5.93112805,1686.1,1685.7,0.12278073]
[1745350803400,12.41426373,1686.0,1685.7,0.12278073]
[1745350803695,5.56301862,1685.7,1685.4,2.32968905]
[1745350803893,11.49529832,1685.7,1685.4,2.32968905]
[1745350804134,11.49529832,1685.7,1685.5,0.11555112]
[1745350804295,5.9326056,1685.6,1685.5,0.11555112]
[1745350804488,13.23841461,1685.6,1685.5,0.11555112]
[1745350804689,23.86241422,1685.6,1685.4,1.42503793]
[1745350804917,0.7971,1685.0,1684.7,0.005]
[1745350805122,9.82689961,1684.8,1684.0,0.7891]
[1745350805306,3.0,1684.6,1684.0,0.7891]
[1745350805503,3.0,1684.7,1684.0,0.7891]
[1745350805719,3.0,1684.9,1684.2,1.78125049]
[1745350805917,5.93568975,1684.8,1684.0,0.7891]
[1745350806287,3.96811,1684.9,1684.0,0.7891]
[1745350806491,3.0,1684.9,1684.0,0.7891]
[1745350806713,5.93550148,1684.8,1684.0,0.7891]
[1745350806924,5.93550148,1684.8,1684.2,5.886]
[1745350807424,3.7971,1685.0,1684.5,2.41376141]
[1745350807622,6.82689961,1685.3,1684.5,2.41376141]
[1745350807623,5.56301862,1684.7,1684.5,2.41376141]
[1745350808414,0.44228512,1685.1,1684.5,1.62466141]
[1745350808415,5.55312819,1684.6,1684.5,1.62466141]
[1745350809137,11.48925546,1684.6,1684.5,1.62466141]
[1745350809341,3.72270416,1684.2,1683.9,0.7891]
[1745350810142,3.72270416,1684.5,1683.9,8.4576196]
[1745350810345,3.72270416,1684.5,1684.0,0.7891]
[1745350810841,5.93767181,1684.2,1683.7,6.6761]
[1745350811044,3.72270416,1684.2,1683.8,0.66761]
[1745350811202,9.66040984,1684.2,1683.8,0.66761]
[1745350811405,3.72270416,1684.2,1683.8,0.66761]
[1745350811612,4.03040515,1684.2,1683.8,0.66761]
[1745350812043,8.94071169,1683.3,1683.2,0.005]
[1745350812244,5.94048254,1683.4,1683.2,0.005]
[1745350812421,5.93983856,1683.6,1683.2,0.005]
[1745350812824,3.45317555,1683.7,1683.2,0.005]
[1745350813031,0.30764,1683.6,1683.2,5.893]
[1745350813239,0.30764,1683.6,1683.3,0.5893]
[1745350814125,0.30764,1683.6,1683.3,0.70032403]
[1745350814349,5.93733245,1684.3,1683.4,0.85709716]
[1745350814649,5.93733245,1684.3,1684.2,0.005]
[1745350815212,6.37166773,1684.3,1684.2,0.005]
[1745350815640,6.37151986,1684.3,1684.2,0.005]
[1745350816033,13.40123618,1684.3,1684.2,0.005]
[1745350818562,6.37743941,1684.4,1684.2,0.005]
[1745350818563,5.93689139,1684.4,1684.2,0.005]
[1745350818729,6.1,1684.4,1684.2,0.005]
[1745350818934,6.1,1684.4,1684.3,0.7977]
[1745350819660,12.0351583,1684.9,1684.3,0.7977]
[1745350819866,6.1,1684.9,1684.3,0.7977]
[1745350820153,5.93543114,1684.8,1684.3,0.7977]
[1745350820317,12.03525903,1684.9,1684.3,0.7977]
[1745350820937,6.1,1684.9,1684.3,0.7977]
[1745350821652,5.93467419,1685.1,1684.3,2.57883213]
[1745350821653,6.1,1685.1,1684.3,2.57883213]
[1745350821826,6.1,1685.1,1684.5,0.7977]
[1745350822027,12.0336755,1685.3,1684.6,5.889]
[1745350822223,6.1,1685.3,1684.8,0.7977]
[1745350822438,5.93367834,1685.3,1684.8,0.7977]
[1745350823330,5.9333096,1685.4,1684.8,0.7977]
[1745350823554,5.93366727,1685.3,1684.8,0.7977]
[1745350823775,6.1,1685.5,1684.8,2.57826048]
[1745350823943,5.93318352,1685.5,1684.8,0.7977]
[1745350824144,5.9332227,1685.5,1684.9,5.889]
[1745350824349,6.1,1685.6,1685.0,0.64824183]
[1745350824545,6.1,1685.6,1685.1,0.7977]
[1745350824751,12.03261698,1685.6,1685.1,0.7977]
[1745350825635,12.03268361,1685.6,1685.1,0.7977]
[1745350825863,5.93310796,1685.5,1685.1,0.7977]
[1745350826072,5.93317226,1685.5,1685.2,5.888]
[1745350826368,12.03278404,1685.6,1685.2,6.55657]
[1745350826939,6.1,1685.6,1685.2,6.55657]
[1745350827172,12.03201754,1685.8,1685.2,6.61590372]
[1745350827338,12.03201754,1685.8,1685.2,6.55657]
[1745350827682,6.1,1685.8,1685.2,6.55657]
[1745350827859,6.1,1685.8,1685.3,0.71498617]
[1745350828069,12.03196183,1685.8,1685.3,0.655657]
[1745350828233,6.1,1685.8,1685.3,0.655657]
[1745350828438,6.1,1685.8,1685.5,0.8219]
[1745350828638,6.23847915,1686.1,1685.6,5.888]
[1745350828639,5.93139738,1686.0,1685.6,5.888]
[1745350828853,5.93139738,1686.0,1685.6,6.55899]
[1745350829062,6.1,1685.9,1685.6,6.55899]
[1745350829342,6.1,1686.0,1685.6,6.55899]
[1745350829740,12.0314508,1686.0,1685.6,0.67099]
[1745350829946,12.03123551,1686.0,1685.7,5.888]
[1745350830145,6.1,1686.0,1685.7,5.888]
[1745350832375,6.1,1686.0,1685.8,0.8812117]
[1745350832581,6.1,1686.0,1685.8,0.8219]
[1745350834041,6.1,1686.0,1685.8,0.88121101]
[1745350834242,6.1,1686.0,1685.8,1.4988211]
[1745350834982,6.1,1686.0,1685.8,1.55813212]
[1745350835147,6.1,1686.4,1685.9,0.8219]
[1745350835349,12.02894595,1686.7,1686.0,0.05930005]
[1745350835544,6.1,1686.6,1686.2,0.8219]
[1745350835875,6.1,1686.5,1686.2,20.3789]
[1745350836080,6.1,1686.7,1686.2,20.3789]
[1745350836984,12.02874752,1686.7,1686.2,20.3789]
[1745350837146,12.02874752,1686.7,1686.3,2.03789]
[1745350837547,6.1,1686.7,1686.3,2.03789]
[1745350837771,6.1,1686.8,1686.4,0.88119165]
[1745350837976,6.1,1686.8,1686.6,0.8219]
[1745350838184,6.1,1686.8,1686.7,0.05928099]
[1745350838401,6.1,1687.3,1686.8,0.8219]
[1745350838614,6.1,1687.3,1686.9,6.06327373]
[1745350838810,6.1,1687.3,1686.9,6.7517911]
[1745350839005,6.1,1687.3,1687.0,0.8219]
[1745350839200,6.1,1687.3,1687.1,0.05926566]
[1745350839405,6.1,1687.5,1687.1,19.554]
[1745350839910,6.1,1687.6,1687.2,0.88115889]
[1745350840098,6.1,1687.7,1687.3,6.002]
[1745350840680,6.1,1687.7,1687.4,0.8219]
[1745350840923,6.1,1687.7,1687.2,2.04351589]
[1745350841076,5.92697961,1687.2,1687.1,20.3759]
[1745350841281,12.02697961,1687.2,1687.1,25.556]
[1745350841543,6.1,1687.2,1687.1,25.556]
[1745350841815,12.02697961,1687.2,1687.1,25.556]
[1745350842015,5.92757859,1687.1,1686.9,6.002]
[1745350842587,12.02768227,1687.0,1686.9,6.002]
[1745350843185,6.1,1687.0,1686.9,6.002]
[1745350843781,6.1,1687.0,1686.9,6.67792]
[1745350844790,6.1,1687.0,1686.9,6.002]
[1745350847397,6.1,1687.2,1686.9,6.002]
[1745350847596,6.1,1687.2,1686.9,6.0612714]
[1745350848335,5.92781623,1687.0,1686.8,6.7582]
[1745350848640,5.92781623,1687.0,1686.8,6.001]
[1745350848825,5.92803367,1686.9,1686.8,6.001]
[1745350849196,5.92781623,1687.0,1686.8,6.001]
[1745350849534,5.92803367,1686.9,1686.8,6.001]
[1745350849898,11.85578423,1687.0,1686.8,6.001]
[1745350850236,5.92803367,1686.9,1686.5,0.7572]
[1745350850438,6.82689961,1686.9,1686.3,0.7572]
[1745350850595,5.92920507,1686.6,1686.4,6.0]
[1745350851233,5.92943966,1686.5,1686.4,6.0]
[1745350851394,5.9302847,1686.3,1686.1,0.7572]
[1745350851587,5.9302847,1686.3,1686.0,25.541]
[1745350851790,11.86130217,1686.2,1686.0,19.541]
[1745350852026,5.9311981,1686.0,1685.9,6.0]
[1745350852231,5.93172706,1685.9,1685.7,6.0]
[1745350852411,8.21492808,1686.3,1685.6,0.7572]
[1745350852412,5.93224828,1685.8,1685.6,6.0]
[1745350852619,14.14526145,1686.3,1685.6,6.0]
[1745350852820,5.93067041,1686.2,1685.8,0.7572]
[1745350853219,13.55208933,1686.3,1685.8,0.7572]
[1745350853220,13.55205776,1686.3,1685.8,0.7572]
[1745350853401,5.93119802,1686.1,1685.8,0.7572]
[1745350853797,5.93113354,1686.1,1685.8,0.7572]
[1745350853998,5.93128862,1686.0,1685.8,0.7572]
[1745350854437,5.93128862,1686.0,1685.5,0.7572]
[1745350854598,5.93128862,1686.0,1685.6,6.001]
[1745350854805,5.93181164,1685.9,1685.6,6.001]
[1745350854998,5.93223792,1685.8,1685.6,6.001]
[1745350855235,5.93225366,1685.7,1685.6,6.001]
[1745350856033,5.93192277,1685.8,1685.6,6.001]
[1745350856233,7.11817584,1685.9,1685.6,6.001]
[1745350856437,5.93184536,1685.9,1685.6,6.001]
[1745350856815,5.93213918,1685.8,1685.6,6.001]
[1745350857414,6.23878237,1686.0,1685.6,6.001]
[1745350857618,0.30756765,1686.0,1685.7,0.88782405]
[1745350857937,5.93080476,1686.2,1685.7,0.8285]
[1745350858140,6.23837524,1686.2,1685.7,0.8285]
[1745350859545,6.2383241,1686.2,1685.7,0.8285]
[1745350859840,5.9309683,1686.1,1685.7,0.8285]
[1745350860248,7.91315747,1686.1,1685.3,19.542]
[1745350860447,5.93244401,1685.7,1685.5,6.002]
[1745350860634,11.86500736,1685.7,1685.5,6.002]
[1745350860836,5.93209215,1685.8,1685.3,19.542]
[1745350861150,5.93209215,1685.8,1684.3,0.205]
[1745350861151,5.93401376,1685.2,1684.3,1.78614683]
[1745350861319,5.93487123,1685.0,1684.4,6.8173]
[1745350861524,5.9346211,1685.1,1684.4,6.8173]